bitfinex-derivatives/quotes_ETHF0:USTF0_20210111
["timestamp","ask_amount","ask_price","bid_price","bid_amount"]
[1610381809666,4.00959,932.55,931.94,1.64201633]
[1610381809865,4.00959,932.55,931.85,1.64211669]
[1610381810064,4.00959,932.55,932.0,1.2473944]
[1610381810666,4.00959,932.55,931.69,1.64279536]
[1610381810868,75.3898,932.84,931.55,1.64287391]
[1610381810869,4.00959,931.7,931.55,1.64287391]
[1610381811069,75.3898,932.84,931.39,4.00959]
[1610381811265,75.3898,932.84,931.39,2.4]
[1610381812266,75.3898,932.84,930.74,1.745]
[1610381812467,76.9238,932.84,931.0,1.15125004]
[1610381812866,4.00959,931.03,931.0,1.15125004]
[1610381813470,4.00959,931.03,930.22,1.64480995]
[1610381813668,4.00959,931.03,929.29,0.12153926]
[1610381813669,2.387,931.68,930.15,1.64485027]
[1610381813869,2.387,931.68,930.15,3.55085027]
[1610381814069,2.387,931.68,930.15,1.906]
[1610381814270,1.07299,931.99,930.15,1.906]
[1610381814472,1.07299,931.99,929.56,0.11657478]
[1610381814673,1.07299,931.99,930.15,2.341]
[1610381814674,1.44164,931.0,930.15,2.341]
[1610381814871,4.00959,930.16,930.15,2.341]
[1610381815071,4.00959,930.16,930.15,1.7913]
[1610381815472,4.00959,930.16,930.15,0.451]
[1610381815672,4.00959,930.16,929.57,1.64608174]
[1610381815873,64.007,930.54,929.29,0.12153926]
[1610381816074,64.007,930.54,929.91,0.65835179]
[1610381816272,64.007,930.54,929.91,2.46835179]
[1610381816472,64.007,930.54,929.99,0.65837699]
[1610381816673,64.007,930.54,929.91,2.00731412]
[1610381816873,64.007,930.54,930.02,4.00959]
[1610381817273,64.007,930.54,930.0,0.98733917]
[1610381817473,64.007,930.54,929.91,1.21826839]
[1610381817675,64.007,930.54,929.65,1.97464743]
[1610381818077,59.6323,930.54,929.58,1.97431204]
[1610381818276,1.885,931.99,929.58,1.97431204]
[1610381818477,31.5872938,935.57,929.58,1.571]
[1610381818678,31.57462239,935.81,929.58,1.571]
[1610381818877,4.00959,933.52,933.02,4.00959]
[1610381819077,6.03859,933.52,933.02,4.00959]
[1610381819279,2.029,933.52,933.02,4.00959]
[1610381820479,2.029,933.52,930.42,4.60030493]
[1610381820881,2.029,933.52,933.51,4.00959]
[1610381821282,2.029,933.52,931.35,2.153]
[1610381822481,1.10138,933.47,930.7,4.59749085]
[1610381822681,1.10138,933.47,931.18,4.59821462]
[1610381822881,4.00959,931.4,931.18,6.09221462]
[1610381823082,4.00959,931.4,931.18,1.494]
[1610381823283,2.352,932.14,931.18,1.494]
[1610381823482,2.352,932.14,929.92,4.60066609]
[1610381823682,2.352,932.14,931.18,1.75]
[1610381825786,2.396,933.0,931.18,1.75]
[1610381826187,2.396,933.0,931.3,0.32860103]
[1610381826587,2.396,933.0,931.23,0.32859343]
[1610381826795,2.396,933.0,931.18,1.75]
[1610381826989,4.00959,932.44,931.79,4.00959]
[1610381827189,4.00959,932.44,931.44,0.32862421]
[1610381827589,4.00959,932.44,931.27,0.32864515]
[1610381827790,4.00959,932.44,931.18,1.75]
[1610381828190,1.859,932.67,931.18,1.75]
[1610381828589,1.859,932.67,931.01,0.32872632]
[1610381828789,1.859,932.67,931.21,0.32870336]
[1610381828990,1.859,932.67,931.21,2.30270336]
[1610381829190,1.859,932.67,931.21,1.974]
[1610381829392,1.859,932.67,931.25,0.32862128]
[1610381829790,1.859,932.67,931.24,0.32860923]
[1610381830189,1.859,932.67,931.22,0.32864965]
[1610381830391,1.859,932.67,931.17,0.32865994]
[1610381830690,1.859,932.67,931.07,0.32874889]
[1610381830889,4.00959,931.98,931.82,4.00959]
[1610381831091,4.00959,931.98,930.79,0.32867186]
[1610381831291,4.00959,931.98,930.93,0.32873938]
[1610381831492,4.00959,931.98,930.93,2.68973938]
[1610381831693,4.00959,931.98,930.93,2.361]
[1610381832492,0.2,931.21,930.93,2.361]
[1610381832893,0.2,931.21,930.25,0.64998304]
[1610381833092,4.00959,930.94,930.65,4.00959]
[1610381833793,0.2,931.21,930.65,4.00959]
[1610381833996,0.2,931.21,930.65,5.80059]
[1610381834997,0.2,931.21,930.82,4.00959]
[1610381835593,0.2,931.21,930.65,1.791]
[1610381836999,4.00959,931.05,930.65,1.791]
[1610381837195,0.2,931.21,930.65,1.791]
[1610381837599,0.2,931.21,931.1,1.64438683]
[1610381837796,0.2,931.21,931.1,3.89238683]
[1610381837998,0.2,931.21,931.11,1.64441874]
[1610381838397,0.2,931.21,931.1,2.248]
[1610381838398,0.2,931.21,931.15,1.64398095]
[1610381838698,0.2,931.21,931.1,2.248]
[1610381838901,65.2118,931.75,930.65,1.791]
[1610381839101,65.2118,931.75,931.19,1.97262833]
[1610381839300,65.2118,931.75,930.65,1.588]
[1610381839701,65.2118,931.75,931.2,1.64415674]
[1610381840102,65.2118,931.75,931.15,1.64522888]
[1610381840300,65.2118,931.75,931.2,2.459]
[1610381840700,65.2118,931.75,930.5,0.69216539]
[1610381840900,65.2118,931.75,931.3,1.64514431]
[1610381841099,65.2118,931.75,931.2,1.923]
[1610381841501,65.2118,931.75,931.74,4.00959]
[1610381841706,65.2118,931.75,931.74,5.65559]
[1610381842504,65.2118,931.75,931.74,1.646]
[1610381843504,4.00959,931.75,931.74,2.037]
[1610381843705,4.00959,931.75,931.74,1.8315]
[1610381844105,4.00959,931.75,931.0,1.0709]
[1610381845105,4.00959,931.75,930.54,0.32905301]
[1610381845404,4.00959,931.75,930.57,0.32904157]
[1610381845604,4.00959,930.86,930.72,4.00959]
[1610381845805,2.441,932.59,930.72,4.00959]
[1610381846206,1.10019,932.44,930.72,3.21079]
[1610381846409,1.10019,932.44,930.57,1.798]
[1610381847407,1.10019,932.44,930.0,0.65858113]
[1610381847609,4.00959,930.46,930.0,0.43297113]
[1610381847808,2.168,932.37,929.8,0.98777774]
[1610381848007,2.168,932.37,929.8,3.36977774]
[1610381848207,2.168,932.37,929.8,2.382]
[1610381849419,2.168,932.37,929.8,2.452]
[1610381849609,4.00959,930.36,929.8,2.452]
[1610381849809,2.168,932.37,929.8,2.452]
[1610381850012,2.1327,932.36,929.8,2.452]
[1610381850408,1.04002,931.45,929.8,2.452]
[1610381851010,1.04002,931.45,929.8,1.9052]
[1610381851613,2.1744,931.44,929.2,2.40498587]
[1610381851810,1.04002,931.45,929.2,1.86858587]
[1610381852012,1.04002,931.45,929.2,1.77]
[1610381852511,73.2044,929.98,929.2,2.382]
[1610381852711,61.4754,929.98,929.2,2.382]
[1610381852911,61.4754,929.98,929.2,1.8128]
[1610381852912,51.4954,929.98,929.2,1.8128]
[1610381853311,2.12,929.97,929.2,1.8128]
[1610381853511,4.00959,929.35,929.23,4.00959]
[1610381853712,2.12,929.97,929.23,3.19599]
[1610381853911,51.4954,929.98,929.23,1.2966]
[1610381855911,51.4954,929.98,929.23,1.718]
[1610381856317,1.10138,929.76,929.23,1.718]
[1610381856515,1.10138,929.76,927.59,1.33079389]
[1610381856715,51.4954,929.98,927.27,0.12350207]
[1610381856915,51.4954,929.98,927.27,2.47450207]
[1610381857118,2.1647,929.97,927.27,2.47450207]
[1610381857516,4.00959,929.99,927.27,2.47450207]
[1610381857517,4.00959,929.17,928.86,0.32950136]
[1610381857726,1.521,931.24,928.86,0.32950136]
[1610381857918,1.521,931.24,928.86,2.05]
[1610381858115,1.04002,934.56,928.86,2.05]
[1610381858315,1.04002,934.56,929.06,0.32931921]
[1610381858518,2.14,932.07,929.53,0.3294962]
[1610381858720,2.14,932.07,929.53,2.1074962]
[1610381858918,2.14,932.07,929.53,1.778]
[1610381859317,1.04002,934.56,929.53,1.778]
[1610381859517,4.00959,930.48,930.34,4.00959]
[1610381859719,4.00959,930.48,929.53,1.778]
[1610381859918,2.309,931.65,929.55,0.32919179]
[1610381860117,2.309,931.65,929.61,0.32919797]
[1610381860320,2.1548,931.64,929.61,0.32919797]
[1610381861017,2.1548,931.64,929.53,1.778]
[1610381861317,2.1548,931.64,929.06,0.64452561]
[1610381861517,2.1548,931.64,929.26,4.00959]
[1610381861718,2.1548,931.64,929.26,1.896]
[1610381861919,2.1548,931.64,929.26,1.902]
[1610381862118,2.1548,931.64,929.26,1.65]
[1610381862319,69.1665,930.65,929.26,1.65]
[1610381863620,4.00959,929.27,928.86,1.26818199]
[1610381863823,69.1665,930.65,928.54,1.64757633]
[1610381864020,69.1665,930.65,928.54,1.782]
[1610381864519,69.1665,930.65,928.16,1.9771335]
[1610381864721,69.1665,930.65,928.54,0.0504]
[1610381865122,1.44164,930.29,928.54,0.0504]
[1610381865322,1.44164,930.29,927.88,1.97795467]
[1610381865522,1.44164,930.29,928.41,4.00959]
[1610381865722,1.44164,930.29,928.41,1.259]
[1610381866323,1.44164,930.29,927.81,1.97807095]
[1610381866525,1.44164,930.29,927.76,1.9782098]
[1610381866923,1.44164,930.29,927.83,1.97814828]
[1610381867123,1.06685,930.15,927.83,1.799]
[1610381867323,1.06685,930.15,924.5,30.0]
[1610381867525,1.06685,930.15,928.1,4.00959]
[1610381867725,1.06685,930.15,928.1,2.138]
[1610381868124,1.06685,930.15,924.65,7.91457341]
[1610381868524,1.06685,930.15,924.35,9.0]
[1610381868724,1.06685,930.15,924.1,2.1759]
[1610381869324,1.06685,930.15,924.2,30.0]
[1610381869524,1.06685,930.15,924.2,31.647]
[1610381869723,4.00959,928.3,924.21,9.0]
[1610381869924,1.06685,930.15,924.31,30.0]
[1610381870324,1.06685,930.15,924.2,1.647]
[1610381870927,2.1635,930.14,924.2,1.647]
[1610381871126,2.1635,930.14,924.21,4.0]
[1610381871328,2.1635,930.14,924.2,1.647]
[1610381871527,2.1635,930.14,924.3,30.0]
[1610381871728,4.00959,927.73,927.52,0.33002024]
[1610381871925,1.06685,930.15,927.52,0.33002024]
[1610381872127,1.06685,930.15,927.52,2.004]
[1610381872327,73.5736,928.41,927.52,1.6189]
[1610381872527,73.5736,928.41,927.58,0.33001886]
[1610381872729,73.5736,928.41,927.52,1.6189]
[1610381872927,75.723,928.41,927.52,1.6189]
[1610381873127,53.744,928.41,927.52,1.6189]
[1610381873330,50.14,928.41,927.52,1.6189]
[1610381873731,4.00959,927.53,927.52,1.6189]
[1610381875632,4.00959,927.53,927.52,0.8151]
[1610381875832,4.00959,927.53,927.16,0.33013648]
[1610381876031,4.00959,927.53,926.85,0.33017786]
[1610381876232,4.00959,927.53,926.67,0.43196717]
[1610381876432,4.00959,927.53,926.67,1.32069581]
[1610381876834,4.00959,927.53,926.57,1.32078483]
[1610381877235,4.00959,927.53,926.55,1.3208067]
[1610381877434,4.00959,927.53,920.37,1.03918]
[1610381877435,4.00959,927.53,926.56,1.32083484]
[1610381877637,2.1284,928.05,926.56,3.68483484]
[1610381877837,2.1284,928.05,926.56,2.364]
[1610381878036,2.1284,928.05,926.56,2.2571]
[1610381878236,76.6364,927.85,926.56,1.674]
[1610381878437,76.6364,927.85,926.56,1.1774]
[1610381879140,76.6364,927.85,926.72,0.74232561]
[1610381879339,76.6364,927.85,926.72,0.62032561]
[1610381879542,76.6364,927.85,926.56,1.1774]
[1610381879543,76.6364,927.85,926.59,1.65096858]
[1610381879740,76.6364,927.85,927.1,4.00959]
[1610381879940,76.6364,927.85,927.1,5.21549]
[1610381880141,76.6364,927.85,927.1,1.561]
[1610381880943,2.1626,927.84,927.1,1.561]
[1610381881143,2.1626,927.84,926.56,1.1774]
[1610381881543,2.1626,927.84,926.57,1.65057168]
[1610381881745,2.1626,927.84,926.82,4.00959]
[1610381881943,2.1626,927.84,926.82,5.58459]
[1610381882946,2.1626,927.84,926.82,0.84339]
[1610381883144,2.1626,927.84,926.82,0.12649]
[1610381883343,2.1626,927.84,926.82,2.208]
[1610381883746,4.00959,927.12,926.82,2.208]
[1610381884345,4.00959,927.12,926.22,1.65151735]
[1610381884547,4.00959,927.12,926.01,1.65184517]
[1610381884746,4.00959,927.12,925.98,1.65181577]
[1610381884948,2.125,927.11,925.61,2.64290523]
[1610381885146,2.125,927.11,925.99,1.65191516]
[1610381885346,2.125,927.11,925.99,3.82891516]
[1610381885548,2.125,927.11,925.99,2.177]
[1610381885746,4.00959,926.34,925.99,2.177]
[1610381886347,4.00959,926.34,926.1,0.3304297]
[1610381886549,4.00959,926.34,926.01,0.66085939]
[1610381886749,4.00959,926.34,925.99,0.99128909]
[1610381886947,2.1829,926.33,925.27,2.64357063]
[1610381887147,2.1829,926.33,925.23,2.63959525]
[1610381887548,2.1829,926.33,925.15,2.63975731]
[1610381887748,4.00959,925.88,925.74,2.63850975]
[1610381887947,4.00959,925.88,925.63,1.64809975]
[1610381888150,4.00959,925.88,925.53,3.30365762]
[1610381888548,4.00959,925.88,925.15,1.98374888]
[1610381888750,4.00959,925.88,925.07,1.98378967]
[1610381888949,2.1553,925.87,924.7,3.30631612]
[1610381889148,2.1553,925.87,924.71,3.30655243]
[1610381889350,2.1553,925.87,924.71,1.66]
[1610381889749,2.1553,925.87,925.4,1.32257175]
[1610381889950,2.1553,925.87,925.4,2.415]
[1610381890148,2.1553,925.87,925.33,0.74215427]
[1610381890349,2.1553,925.87,925.24,1.09244427]
[1610381891555,2.1553,925.87,924.71,1.66]
[1610381891752,4.00959,925.15,925.12,2.91649]
[1610381892152,4.00959,925.15,924.71,1.66]
[1610381892352,4.00959,925.15,924.95,4.63058138]
[1610381892552,4.00959,925.15,924.95,4.43058138]
[1610381892754,4.00959,925.15,924.71,1.66]
[1610381892953,2.165,925.14,924.71,1.66]
[1610381894355,2.165,925.14,923.95,3.30892881]
[1610381894755,2.165,925.14,923.87,3.30945614]
[1610381894954,2.165,925.14,924.01,2.1786]
[1610381895154,2.165,925.14,924.01,3.8856]
[1610381895358,2.165,925.14,924.25,1.65493063]
[1610381895754,2.165,925.14,924.29,1.6547399]
[1610381895959,2.165,925.14,924.34,1.65458859]
[1610381896356,2.165,925.14,924.38,1.65456661]
[1610381896755,2.165,925.14,924.21,2.1482]
[1610381896957,2.165,925.14,924.73,0.33090186]
[1610381897156,2.165,925.14,924.01,1.707]
[1610381897357,2.165,925.14,924.71,0.66175856]
[1610381897658,2.165,925.14,924.75,0.66172375]
[1610381897859,4.00959,924.83,924.75,0.66172375]
[1610381898058,2.165,925.14,924.77,0.99253522]
[1610381898257,2.165,925.14,924.95,0.6618356]
[1610381898559,2.165,925.14,924.84,0.66179841]
[1610381898756,2.165,925.14,924.32,4.00959]
[1610381898957,2.165,925.14,924.22,2.64700279]
[1610381899357,2.165,925.14,924.4,1.98509598]
[1610381899556,2.165,925.14,924.01,1.707]
[1610381899557,2.165,925.14,925.03,1.98508365]
[1610381899756,4.00959,925.04,925.03,1.98508365]
[1610381899957,4.00959,925.04,924.42,1.98507316]
[1610381900158,4.00959,925.04,924.39,1.98504013]
[1610381900558,4.00959,925.04,924.71,1.3233503]
[1610381900758,2.165,925.14,924.71,1.3233503]
[1610381900959,2.165,925.14,924.72,1.32328252]
[1610381901161,2.165,925.14,924.86,1.32317735]
[1610381901560,2.165,925.14,924.82,1.32326405]
[1610381901759,2.165,925.14,925.13,4.00959]
[1610381902161,90.1331,926.52,925.13,4.00959]
[1610381902360,6.606,931.15,925.13,4.00959]
[1610381902760,33.08446043,931.3,925.13,4.00959]
[1610381902964,6.0154,930.08,924.94,1.32308632]
[1610381903161,1.53,926.35,924.94,1.32308632]
[1610381903361,1.733,927.39,924.9,1.32282602]
[1610381903762,1.733,927.39,924.74,2.1596]
[1610381903763,4.00959,925.73,925.38,4.00959]
[1610381903961,2.1681,925.72,925.38,4.00959]
[1610381904560,2.1346,926.08,925.38,4.00959]
[1610381904763,2.1346,926.08,925.48,1.32235439]
[1610381904963,2.1346,926.08,925.38,4.00959]
[1610381905164,2.1346,926.08,925.39,2.1395]
[1610381905362,2.1346,926.08,925.4,1.32246314]
[1610381905563,2.1346,926.08,925.46,1.32238901]
[1610381905762,2.1346,926.08,925.66,4.00959]
[1610381906562,2.139,926.78,925.66,4.00959]
[1610381906962,2.139,926.78,925.93,1.3216151]
[1610381907362,2.139,926.78,925.39,2.155]
[1610381907562,2.139,926.78,925.54,0.33070041]
[1610381907762,4.00959,925.85,925.54,0.33070041]
[1610381907962,5.94859,925.85,925.33,0.33071418]
[1610381908162,5.94859,925.85,925.45,0.3307325]
[1610381908362,1.939,925.85,925.45,0.3307325]
[1610381908562,1.939,925.85,925.35,0.3307207]
[1610381908964,1.939,925.85,925.5,0.33071823]
[1610381909363,1.939,925.85,925.42,0.33072924]
[1610381909563,1.939,925.85,925.49,0.33071265]
[1610381909763,1.5987,925.85,925.84,4.00959]
[1610381909962,0.6846,926.23,925.84,4.00959]
[1610381910163,2.1364,926.63,925.84,4.00959]
[1610381910764,0.96869,927.47,925.84,4.00959]
[1610381911763,4.00959,926.73,926.21,4.00959]
[1610381911965,2.1634,926.72,926.21,4.00959]
[1610381912166,2.1634,926.72,925.52,0.33065147]
[1610381912365,2.1634,926.72,925.62,0.33041358]
[1610381912566,2.1634,926.72,925.64,0.33064952]
[1610381912968,2.1634,926.72,925.59,0.330665]
[1610381913267,2.1634,926.72,925.57,0.33063829]
[1610381913467,2.1634,926.72,925.48,1.488e-05]
[1610381913668,2.1634,926.72,923.24,6.4726]
[1610381913669,2.1634,926.72,925.31,0.99133251]
[1610381913869,4.00959,925.67,925.06,1.32184338]
[1610381914069,4.00959,925.67,924.99,4.00959]
[1610381914268,4.00959,925.67,925.58,1.65242939]
[1610381914667,4.00959,925.67,925.16,1.98374976]
[1610381914868,6.14159,925.67,925.16,1.98374976]
[1610381915070,2.1344,925.66,924.77,3.30023454]
[1610381915671,2.1344,925.66,924.62,3.30677148]
[1610381915876,4.00959,925.04,924.5,3.30713515]
[1610381916071,4.00959,925.04,924.56,50.5504]
[1610381916272,4.00959,925.04,924.16,0.5669703]
[1610381916476,4.00959,925.04,923.88,4.63116535]
[1610381916676,4.00959,925.04,923.75,4.62349035]
[1610381917075,2.1546,925.03,923.67,4.62314666]
[1610381917491,2.1546,925.03,923.11,5.28402605]
[1610381917675,2.1546,925.03,923.16,5.29461729]
[1610381917875,2.1546,925.03,923.16,3.08434498]
[1610381918074,2.1546,925.03,923.24,0.83706267]
[1610381918275,2.1546,925.03,923.24,2.72006267]
[1610381918475,2.1546,925.03,923.24,1.883]
[1610381919776,2.1546,925.03,923.0,58.19866365]
[1610381919977,2.1546,925.03,923.52,4.00959]
[1610381920178,2.1546,925.03,923.52,5.85559]
[1610381920777,2.1546,925.03,923.52,5.53069]
[1610381920977,2.1546,925.03,922.47,12.4892]
[1610381921177,2.1546,925.03,923.52,1.47]
[1610381921377,2.1546,925.03,923.52,0.77]
[1610381921576,2.1546,925.03,923.52,0.1561]
[1610381921777,2.1546,925.03,922.47,6.4289]
[1610381921979,4.00959,923.94,923.54,4.00959]
[1610381922178,4.00959,923.94,922.47,6.4289]
[1610381922378,4.00959,923.94,922.34,6.1596]
[1610381923179,2.1522,923.93,922.34,6.1596]
[1610381923778,2.1522,923.93,921.58,6.4753]
[1610381923981,4.00959,922.98,921.58,6.4753]
[1610381924178,4.00959,922.98,921.02,75.9365]
[1610381924179,4.00959,922.98,922.93,1.32614428]
[1610381924379,4.00959,922.98,922.93,2.332]
[1610381924580,4.00959,922.98,922.93,1.0059]
[1610381924779,4.00959,922.98,922.93,0.6314]
[1610381924979,4.00959,922.98,922.93,2.461]
[1610381925179,2.1363,922.97,922.93,2.1408]
[1610381925379,2.1363,922.97,922.96,0.33161433]
[1610381925579,2.1363,922.97,922.86,0.012743]
[1610381925779,2.1363,922.97,922.96,0.4632]
[1610381925981,2.1363,922.97,922.96,0.2388]
[1610381926180,2.1363,922.97,922.96,2.313]
[1610381926379,2.1363,922.97,922.96,1.827]
[1610381926980,2.1363,922.97,921.6,3.3180742]
[1610381927182,4.5343,922.97,921.6,3.3180742]
[1610381927381,4.5343,922.97,921.59,3.31587776]
[1610381927681,4.5343,922.97,922.24,3.31606735]
[1610381927882,4.00959,922.66,922.24,3.31606735]
[1610381928082,6.29159,922.66,922.27,3.31558368]
[1610381928482,6.29159,922.66,922.05,2.092]
[1610381928683,6.29159,922.66,922.05,1.4071]
[1610381928883,6.29159,922.66,921.73,3.31740537]
[1610381929083,6.29159,922.66,921.59,3.31551838]
[1610381929384,6.29159,922.66,922.08,3.31548801]
[1610381929785,6.29159,922.66,922.05,3.31566573]
[1610381929984,4.00959,922.06,921.9,5.47389707]
[1610381930185,2.282,922.66,921.9,4.21829707]
[1610381930385,2.282,922.66,921.97,3.9790287]
[1610381930785,2.282,922.66,922.16,3.31587528]
[1610381930985,2.282,922.66,921.82,2.031]
[1610381931184,2.282,922.66,922.06,3.31627314]
[1610381931384,2.282,922.66,922.0,3.31624691]
[1610381931685,2.282,922.66,922.01,3.31638932]
[1610381931885,4.00959,922.02,922.01,0.48778932]
[1610381932087,4.00959,922.02,921.82,2.031]
[1610381933890,4.00959,921.83,921.82,2.031]
[1610381935089,6.15409,921.83,921.82,2.031]
[1610381935588,6.15409,921.83,921.21,0.0066905]
[1610381935988,4.00959,921.22,921.21,0.0066905]
[1610381936588,2.1394,922.2,920.03,5.97117677]
[1610381936892,2.1417,922.68,920.06,5.97103854]
[1610381937090,2.1417,922.68,922.45,0.33174126]
[1610381937491,2.1417,922.68,922.32,0.88512378]
[1610381937709,2.1417,922.68,922.0,0.99526726]
[1610381937892,2.1417,922.68,922.0,0.37106726]
[1610381938093,4.00959,922.01,921.97,1.32725068]
[1610381938294,2.1398,922.0,921.97,0.35455068]
[1610381938493,2.1398,922.0,921.7,1.52822671]
[1610381938693,2.1398,922.0,921.34,2.65479377]
[1610381938893,4.5418,922.0,919.21,6.63698442]
[1610381939090,4.5418,922.0,921.18,2.65493917]
[1610381939490,4.5418,922.0,920.16,1.761]
[1610381939891,4.00959,921.06,920.7,4.00959]
[1610381940491,2.1794,921.63,920.7,4.00959]
[1610381940692,2.1794,921.63,920.7,6.08459]
[1610381941993,2.1794,921.63,920.86,4.00959]
[1610381942598,1.3777,922.0,920.86,4.00959]
[1610381942801,29.23295691,925.4,920.87,9.0]
[1610381943000,29.23295691,925.4,920.87,39.0]
[1610381943197,29.20620098,926.05,921.43,33.31813235]
[1610381943399,29.20620098,926.05,921.43,35.62213235]
[1610381943598,29.20117235,926.16,921.54,33.31756105]
[1610381944002,21.47971642,926.37,923.54,4.00959]
[1610381944206,21.47971642,926.37,921.85,30.0]
[1610381944399,23.89271642,926.37,921.86,9.0]
[1610381944601,2.413,926.37,922.1,3.30944302]
[1610381944802,2.413,926.37,922.27,3.31489343]
[1610381945003,2.413,926.37,922.37,30.0]
[1610381945204,2.413,926.37,922.57,3.31406932]
[1610381945401,2.413,926.37,922.67,30.0]
[1610381945614,2.413,926.37,922.73,3.3066745]
[1610381946004,2.413,926.37,925.37,4.00959]
[1610381946203,2.413,926.37,923.47,30.0]
[1610381946407,2.413,926.37,923.18,3.96617141]
[1610381946408,2.413,926.37,923.61,30.0]
[1610381946600,2.1547,926.49,923.61,30.0]
[1610381946802,2.1547,926.49,926.37,0.4]
[1610381947002,2.1286,926.6,923.72,30.0]
[1610381947202,0.2197,926.6,923.73,9.0]
[1610381947403,2.1743,926.91,923.99,30.0]
[1610381947604,30.32662,929.38,925.03,0.32956553]
[1610381948003,4.00959,926.86,926.6,4.00959]
[1610381948205,4.53849,926.86,925.19,0.32952886]
[1610381948406,75.2308,928.8,925.56,0.32945056]
[1610381948806,75.2308,928.8,926.0,0.32936131]
[1610381949006,59.5729,928.8,926.17,0.32925482]
[1610381949206,66.8106,929.85,926.17,0.32925482]
[1610381949409,66.8106,929.85,926.25,0.32917102]
[1610381949807,66.8106,929.85,926.4,0.32915849]
[1610381950010,4.00959,928.42,926.4,0.05174849]
[1610381950210,2.108,928.42,926.63,0.65827082]
[1610381950409,66.8106,929.85,926.35,0.53489574]
[1610381950610,66.8106,929.85,926.45,9.0]
[1610381950810,88.0146,931.2,926.82,71.3738]
[1610381951010,88.0146,931.2,926.92,30.0]
[1610381951410,88.0146,931.2,926.93,9.0]
[1610381951611,88.0146,931.2,927.21,1.97216773]
[1610381951810,88.0146,931.2,927.37,1.97184664]
[1610381952009,88.0146,931.2,929.67,4.00959]
[1610381952211,88.0146,931.2,927.6,1.97185249]
[1610381952413,90.0896,931.2,927.6,1.97185249]
[1610381952612,90.0896,931.2,927.67,1.97182555]
[1610381952812,90.0896,931.2,927.71,11.43316773]
[1610381953213,90.0896,931.2,927.75,1.97137742]
[1610381953412,90.0896,931.2,927.72,4.92754515]
[1610381953614,90.0896,931.2,927.55,2.62820154]
[1610381953813,90.0896,931.2,927.8,2.62793988]
[1610381954012,4.00959,930.35,930.14,4.00959]
[1610381954213,5.82059,930.35,927.98,62.8804]
[1610381954413,1.811,930.35,928.08,30.0]
[1610381954914,1.811,930.35,928.19,2.62685483]
[1610381955114,1.811,930.35,928.19,32.62685483]
[1610381955314,1.811,930.35,928.38,2.62752649]
[1610381955515,1.811,930.35,928.19,30.0]
[1610381955714,2.075,931.2,928.06,2.62670512]
[1610381955914,4.00959,929.74,929.15,4.00959]
[1610381956113,2.388,929.74,928.5,2.63209443]
[1610381956315,2.388,929.74,928.89,86.0008]
[1610381957020,2.388,929.74,928.89,59.65700291]
[1610381957218,2.075,931.2,928.89,59.65700291]
[1610381957417,81.278,933.16,928.89,59.65700291]
[1610381957817,81.278,933.16,928.9,9.0]
[1610381958020,4.00959,931.32,930.64,4.00959]
[1610381958218,6.29259,931.32,928.9,9.0]
[1610381958618,2.283,931.32,928.9,9.0]
[1610381959018,2.283,931.32,929.08,2.63432424]
[1610381959219,81.278,933.16,929.08,34.30232424]
[1610381959420,81.278,933.16,929.49,2.62833504]
[1610381959619,81.278,933.16,929.57,2.63305582]
[1610381960120,4.00959,932.58,932.0,4.00959]
[1610381960319,6.31759,932.58,932.0,4.00959]
[1610381960521,2.308,932.58,932.0,4.00959]
[1610381960919,1.648,932.58,932.0,4.00959]